Workbook

Sheet 高中数学
A1: 高中数学总成绩登记表
A3: 序号 | B3: 学段 | C3: 学科 | D3: 姓名 | E3: 准考证号 | F3: 报考志愿 | H3: 笔试 | J3: 面试 | L3: 总成绩
F4: 一愿 | G4: 二愿 | H4: 成绩 | I4: 50%折合 | J4: 成绩 | K4: 50%折合
A5: 1 | B5: 高中 | C5: 数学 | D5: 孙莫言 | E5: 20232700124 | F5: 三高 | G5: 一中 | H5: 69 | I5: =+H5*0.5 -> 34.5 | J5: 84.33 | K5: =+J5*0.5 -> 42.165 | L5: =+K5+I5 -> 76.665
A6: 2 | B6: 高中 | C6: 数学 | D6: 刘磊 | E6: 20232700119 | F6: 一中 | G6: 三高 | H6: 57 | I6: 28.5 | J6: 87.33 | K6: 43.665 | L6: 72.165
A7: 3 | B7: 高中 | C7: 数学 | D7: 罗春颖 | E7: 20232700104 | F7: 一中 | G7: 蒙中 | H7: 54 | I7: 27 | J7: 85 | K7: 42.5 | L7: 69.5
A8: 4 | B8: 高中 | C8: 数学 | D8: 刘晨 | E8: 20232700110 | F8: 蒙中 | G8: 三高 | H8: 50 | I8: 25 | J8: 88.33 | K8: 44.165 | L8: 69.165
A9: 5 | B9: 高中 | C9: 数学 | D9: 李鸿燕 | E9: 20232700204 | F9: 一中 | G9: 蒙中 | H9: 47 | I9: =+H9*0.5 -> 23.5 | J9: 89.33 | K9: =+J9*0.5 -> 44.665 | L9: =+K9+I9 -> 68.165
A10: 6 | B10: 高中 | C10: 数学 | D10: 王晶 | E10: 20232700206 | F10: 四高 | G10: 三高 | H10: 49 | I10: 24.5 | J10: 87.33 | K10: 43.665 | L10: 68.165
A11: 7 | B11: 高中 | C11: 数学 | D11: 姜泳竹 | E11: 20232700112 | F11: 一中 | G11: 四高 | H11: 49 | I11: 24.5 | J11: 87 | K11: 43.5 | L11: 68
A12: 8 | B12: 高中 | C12: 数学 | D12: 曹慧 | E12: 20232700111 | F12: 蒙中 | G12: 三高 | H12: 50 | I12: 25 | J12: 85 | K12: 42.5 | L12: 67.5
A13: 9 | B13: 高中 | C13: 数学 | D13: 王欣莹 | E13: 20232700113 | F13: 蒙中 | G13: 一中 | H13: 47 | I13: 23.5 | J13: 86 | K13: 43 | L13: 66.5
A14: 10 | B14: 高中 | C14: 数学 | D14: 马昕雨 | E14: 20232700211 | F14: 蒙中 | G14: 一中 | H14: 47 | I14: 23.5 | J14: 83.67 | K14: 41.835 | L14: 65.335
A15: 11 | B15: 高中 | C15: 数学 | D15: 单泽众 | E15: 20232700130 | F15: 一中 | G15: 蒙中 | H15: 47 | I15: 23.5 | J15: 82.67 | K15: 41.335 | L15: 64.835

Sheet 高中物理
A1: 高中物理总成绩登记表
A3: 序号 | B3: 学段 | C3: 学科 | D3: 姓名 | E3: 准考证号 | F3: 报考志愿 | H3: 笔试 | J3: 面试 | L3: 总成绩
F4: 一愿 | G4: 二愿 | H4: 成绩 | I4: 50%折合 | J4: 成绩 | K4: 50%折合
A5: 1 | B5: 高中 | C5: 物理 | D5: 白小玉 | E5: 20233000315 | F5: 蒙中 | G5: 四高 | H5: 55 | I5: =+H5*0.5 -> 27.5 | J5: 88 | K5: =+J5*0.5 -> 44 | L5: =+K5+I5 -> 71.5
A6: 2 | B6: 高中 | C6: 物理 | D6: 乔靖涵 | E6: 20233000318 | F6: 蒙中 | G6: 四高 | H6: 52 | I6: 26 | J6: 88.67 | K6: 44.335 | L6: 70.335
A7: 3 | B7: 高中 | C7: 物理 | D7: 张靖渝 | E7: 20233000301 | F7: 四高 | G7: 三高 | H7: 52 | I7: 26 | J7: 87.67 | K7: 43.835 | L7: 69.835
A8: 4 | B8: 高中 | C8: 物理 | D8: 赵钱成 | E8: 20233000313 | F8: 一中 | G8: 三高 | H8: 47 | I8: 23.5 | J8: 85.67 | K8: 42.835 | L8: 66.335
A9: 5 | B9: 高中 | C9: 物理 | D9: 郑思伊 | E9: 20233000302 | F9: 一中 | G9: 蒙中 | H9: 40 | I9: 20 | J9: 88.33 | K9: 44.165 | L9: 64.165
A10: 6 | B10: 高中 | C10: 物理 | D10: 湛明春 | E10: 20233000311 | F10: 一中 | G10: 蒙中 | H10: 40 | I10: 20 | J10: 86.33 | K10: 43.165 | L10: 63.165
A11: 7 | B11: 高中 | C11: 物理 | D11: 王惠昕 | E11: 20233000306 | F11: 蒙中 | G11: 三高 | H11: 40 | I11: 20 | J11: 85 | K11: 42.5 | L11: 62.5
A12: 8 | B12: 高中 | C12: 物理 | D12: 蔡东序 | E12: 20233000304 | F12: 一中 | G12: 三高 | H12: 49 | I12: 24.5 | J12: 缺考 | K12: 缺考 | L12: 24.5

Sheet 高中政治
A1: 高中政治总成绩登记表
A3: 序号 | B3: 学段 | C3: 学科 | D3: 姓名 | E3: 准考证号 | F3: 报考志愿 | H3: 笔试 | J3: 面试 | L3: 总成绩
F4: 一愿 | G4: 二愿 | H4: 成绩 | I4: 50%折合 | J4: 成绩 | K4: 50%折合
A5: 1 | B5: 高中 | C5: 政治 | D5: 王子晴 | E5: 20233600406 | F5: 三高 | G5: 四高 | H5: 84 | I5: =+H5*0.5 -> 42 | J5: 86.67 | K5: =+J5*0.5 -> 43.335 | L5: =+K5+I5 -> 85.335
A6: 2 | B6: 高中 | C6: 政治 | D6: 许欣欣 | E6: 20233600405 | F6: 三高 | G6: 四高 | H6: 85 | I6: 42.5 | J6: 85 | K6: 42.5 | L6: 85
A7: 3 | B7: 高中 | C7: 政治 | D7: 马裕鑫 | E7: 20233600416 | F7: 三高 | G7: 四高 | H7: 74 | I7: =+H7*0.5 -> 37 | J7: 86.67 | K7: =+J7*0.5 -> 43.335 | L7: =+K7+I7 -> 80.335
A8: 4 | B8: 高中 | C8: 政治 | D8: 邹德龙 | E8: 20233600415 | F8: 三高 | G8: 四高 | H8: 76 | I8: 38 | J8: 84.67 | K8: 42.335 | L8: 80.335
A9: 5 | B9: 高中 | C9: 政治 | D9: 乌巍 | E9: 20233600414 | F9: 四高 | G9: 三高 | H9: 73 | I9: 36.5 | J9: 85.67 | K9: 42.835 | L9: 79.335
A10: 6 | B10: 高中 | C10: 政治 | D10: 完成功 | E10: 20233600413 | F10: 四高 | G10: 三高 | H10: 73 | I10: 36.5 | J10: 84 | K10: 42 | L10: 78.5
A11: 7 | B11: 高中 | C11: 政治 | D11: 张学会 | E11: 20233600401 | F11: 四高 | G11: 三高 | H11: 68 | I11: 34 | J11: 85.33 | K11: 42.665 | L11: 76.665
A12: 8 | B12: 高中 | C12: 政治 | D12: 车慧楠 | E12: 20233600410 | F12: 四高 | G12: 三高 | H12: 74 | I12: 37 | J12: 缺考 | K12: 缺考 | L12: 37

Sheet 高中地理
A1: 高中地理总成绩登记表
A3: 序号 | B3: 学段 | C3: 学科 | D3: 姓名 | E3: 准考证号 | F3: 报考志愿 | H3: 笔试 | J3: 面试 | L3: 总成绩
F4: 一愿 | G4: 二愿 | H4: 成绩 | I4: 50%折合 | J4: 成绩 | K4: 50%折合
A5: 1 | B5: 高中 | C5: 地理 | D5: 李明月 | E5: 20233700516 | F5: 蒙中 | G5: 四高 | H5: 81 | I5: =+H5*0.5 -> 40.5 | J5: 87.67 | K5: =+J5*0.5 -> 43.835 | L5: =+K5+I5 -> 84.335
A6: 2 | B6: 高中 | C6: 地理 | D6: 张雪佳 | E6: 20233700520 | F6: 一中 | G6: 蒙中 | H6: 65 | I6: =+H6*0.5 -> 32.5 | J6: 88.33 | K6: =+J6*0.5 -> 44.165 | L6: =+K6+I6 -> 76.665
A7: 3 | B7: 高中 | C7: 地理 | D7: 李明韵 | E7: 20233700513 | F7: 一中 | G7: 蒙中 | H7: 59 | I7: =+H7*0.5 -> 29.5 | J7: 86.33 | K7: =+J7*0.5 -> 43.165 | L7: =+K7+I7 -> 72.665
A8: 4 | B8: 高中 | C8: 地理 | D8: 李一航 | E8: 20233700514 | F8: 蒙中 | G8: 一中 | H8: 75 | I8: =+H8*0.5 -> 37.5 | J8: 缺考 | K8: 缺考 | L8: 37.5
A9: 5 | B9: 高中 | C9: 地理 | D9: 杨佳乐 | E9: 20233700518 | F9: 蒙中 | G9: 四高 | H9: 65 | I9: =+H9*0.5 -> 32.5 | J9: 缺考 | K9: 缺考 | L9: 37.5

Sheet 初中地理
A1: 初中地理总成绩登记表
A3: 序号 | B3: 学段 | C3: 学科 | D3: 姓名 | E3: 准考证号 | F3: 报考志愿 | H3: 笔试 | J3: 面试 | L3: 总成绩
F4: 一愿 | G4: 二愿 | H4: 成绩 | I4: 50%折合 | J4: 成绩 | K4: 50%折合
A5: 1 | B5: 初中 | C5: 地理 | D5: 房欣怡 | E5: 20232100505 | F5: 二中 | G5: 三初 | H5: 70 | I5: =+H5*0.5 -> 35 | J5: 84.67 | K5: =+J5*0.5 -> 42.335 | L5: =+K5+I5 -> 77.335
A6: 3 | B6: 初中 | C6: 地理 | D6: 明霞 | E6: 20232100506 | F6: 蒙初 | G6: 四初 | H6: 55 | I6: =+H6*0.5 -> 27.5 | J6: 87 | K6: =+J6*0.5 -> 43.5 | L6: =+K6+I6 -> 71
A7: 2 | B7: 初中 | C7: 地理 | D7: 刘旦旦 | E7: 20232100504 | F7: 蒙初 | G7: 二中 | H7: 57 | I7: =+H7*0.5 -> 28.5 | J7: 84.67 | K7: =+J7*0.5 -> 42.335 | L7: =+K7+I7 -> 70.835
A8: 4 | B8: 初中 | C8: 地理 | D8: 岩梅 | E8: 20232100503 | F8: 三初 | G8: 四初 | H8: 50 | I8: =+H8*0.5 -> 25 | J8: 84 | K8: =+J8*0.5 -> 42 | L8: =+K8+I8 -> 67
